bitfinex/quotes_SOLUSD_20240614
["timestamp","ask_amount","ask_price","bid_price","bid_amount"]
[1718397729410,8.29,142.42,142.4,7.7947]
[1718397729607,8.29,142.42,142.4,2.5982]
[1718397730230,8.29,142.42,142.39,23.386]
[1718397730231,8.29,142.42,142.39,7.795]
[1718397730825,8.29,142.41,142.38,23.3869]
[1718397731026,8.29,142.41,142.39,15.5905]
[1718397731221,8.29,142.41,142.39,7.7951]
[1718397731625,8.29,142.41,142.39,2.5983]
[1718397733443,42.1157,142.44,142.39,7.7952]
[1718397733738,2.5977,142.43,142.39,7.7952]
[1718397734136,42.1157,142.44,142.39,7.7952]
[1718397734445,2.5977,142.43,142.39,7.7952]
[1718397735225,42.1157,142.44,142.39,7.7952]
[1718397736135,2.5977,142.43,142.39,7.7952]
[1718397737438,42.1157,142.44,142.39,7.7952]
[1718397737642,2.5977,142.43,142.39,7.7952]
[1718397737853,2.5977,142.43,142.39,2.5983]
[1718397738029,2.598,142.42,142.38,2.5985]
[1718397738224,7.7939,142.42,142.38,2.5985]
[1718397739140,2.598,142.42,142.38,7.7958]
[1718397739642,2.5979,142.42,142.38,15.5918]
[1718397739955,25.9784,142.43,142.38,15.5918]
[1718397740335,25.9784,142.43,142.38,25.9864]
[1718397741157,2.5979,142.42,142.38,2.5986]
[1718397741330,15.5876,142.42,142.37,25.9875]
[1718397741525,8.29,142.4,142.38,2.5986]
[1718397741750,8.29,142.4,142.37,25.9875]
[1718397742457,8.29,142.4,142.38,7.7958]
[1718397742655,8.29,142.4,142.38,2.5986]
[1718397743151,8.29,142.4,142.38,25.9861]
[1718397743356,8.29,142.41,142.39,2.5984]
[1718397743560,24.1022,142.44,142.4,2.5983]
[1718397743738,8.29,142.41,142.4,2.5983]
[1718397744049,8.29,142.41,142.39,25.9845]
[1718397744258,12.5186943,142.45,142.37,31.6783]
[1718397744458,23.3754,142.46,142.41,25.9805]
[1718397744660,8.29,142.44,142.42,2.5979]
[1718397744861,8.29,142.44,142.41,25.9805]
[1718397745363,25.9723,142.46,142.42,2.5979]
[1718397745567,8.29,142.43,142.42,7.7937]
[1718397745744,8.29,142.44,142.42,2.5979]
[1718397746651,8.29,142.44,142.42,7.7937]
[1718397747534,8.29,142.44,142.42,2.5979]
[1718397750866,8.29,142.44,142.42,7.7937]
[1718397751375,8.29,142.45,142.42,7.7937]
[1718397751673,8.29,142.45,142.42,2.5979]
[1718397753354,8.29,142.44,142.42,2.5979]
[1718397754485,25.9723,142.46,142.42,2.5979]
[1718397754636,8.29,142.44,142.42,2.5979]
[1718397754971,8.29,142.44,142.41,7.7938]
[1718397755135,15.1528,142.47,142.39,16.5801]
[1718397755341,8.29,142.41,142.38,15.5917]
[1718397755545,8.29,142.41,142.37,7.7963]
[1718397755546,2.5981,142.41,142.37,25.9874]
[1718397755749,8.29,142.4,142.38,2.5986]
[1718397755950,25.9798,142.42,142.38,2.5986]
[1718397755951,8.29,142.41,142.38,2.5986]
[1718397756364,8.29,142.41,142.38,15.5917]
[1718397756567,8.29,142.41,142.39,2.5984]
[1718397756769,8.29,142.41,142.39,7.7953]
[1718397757578,8.29,142.42,142.39,7.7953]
[1718397757953,7.7935,142.43,142.39,7.7953]
[1718397758158,2.5977,142.43,142.39,25.9842]
[1718397759275,25.9767,142.44,142.4,2.5983]
[1718397759466,2.5977,142.43,142.4,2.5983]
[1718397760183,2.5977,142.43,142.39,25.9842]
[1718397761361,2.5977,142.43,142.39,7.7952]
[1718397761980,2.5977,142.43,142.39,15.5906]
[1718397762883,7.7932,142.43,142.39,7.7952]
[1718397763071,15.5865,142.43,142.39,2.5983]
[1718397763982,5.1955,142.43,142.39,7.7952]
[1718397764158,2.5978,142.43,142.39,18.189]
[1718397764359,8.29,142.41,142.39,7.7952]
[1718397765085,8.29,142.41,142.4,2.5983]
[1718397765260,2.5977,142.43,142.4,2.5983]
[1718397765460,2.5977,142.43,142.39,25.9842]
[1718397765663,8.29,142.42,142.39,25.9842]
[1718397766285,8.29,142.41,142.39,7.7952]
[1718397766454,8.29,142.41,142.4,2.5983]
[1718397766659,8.29,142.41,142.39,25.9845]
[1718397768189,8.29,142.41,142.38,5.1972]
[1718397768482,8.29,142.41,142.36,7.7968]
[1718397768483,8.29,142.39,142.36,7.7968]
[1718397768784,8.29,142.39,142.37,2.5988]
[1718397769373,8.29,142.39,142.37,7.7965]
[1718397769574,8.29,142.39,142.38,2.5986]
[1718397770385,8.29,142.4,142.37,25.9881]
[1718397771483,8.29,142.39,142.37,25.9881]
[1718397771890,8.29,142.39,142.37,7.7964]
[1718397775777,8.29,142.39,142.37,2.5987]
[1718397776177,8.29,142.39,142.36,23.3903]
[1718397776382,8.29,142.39,142.36,25.9891]
[1718397777504,8.29,142.39,142.37,7.7964]
[1718397779508,8.29,142.38,142.36,2.5989]
[1718397779709,8.29,142.38,142.36,15.5939]
[1718397780202,8.29,142.39,142.37,2.5988]
[1718397780579,9.91677879,142.42,142.38,15.5918]
[1718397780785,8.29,142.4,142.38,25.986]
[1718397780985,8.29,142.41,142.38,25.986]
[1718397781185,8.29,142.4,142.38,25.986]
[1718397781387,8.29,142.4,142.38,7.7957]
[1718397781605,8.29,142.4,142.38,2.5985]
[1718397782805,7.31877879,142.42,142.4,12.9912]
[1718397782995,8.29,142.42,142.4,25.9824]
[1718397783180,8.29,142.42,142.4,2.5981]
[1718397783506,8.29,142.41,142.4,2.5981]
[1718397784303,8.29,142.41,142.4,7.7947]
[1718397785294,8.29,142.41,142.4,15.5896]
[1718397787818,8.29,142.41,142.4,7.7947]
[1718397788116,8.29,142.41,142.4,2.5983]
[1718397788301,8.29,142.41,142.39,25.9838]
[1718397788499,25.9758,142.44,142.4,2.5983]
[1718397788816,8.29,142.41,142.4,7.7949]
[1718397789192,8.29,142.41,142.38,2.5985]
[1718397789393,8.29,142.4,142.39,2.5984]
[1718397789902,8.29,142.4,142.39,7.7953]
[1718397790487,8.29,142.4,142.39,15.5907]
[1718397790695,8.29,142.4,142.39,25.9846]
[1718397791413,8.29,142.41,142.4,15.5895]
[1718397791708,8.29,142.41,142.4,7.7946]
[1718397792305,8.29,142.41,142.4,2.5981]
[1718397793715,8.29,142.41,142.38,2.5986]
[1718397793893,8.29,142.41,142.36,5.198]
[1718397793894,2.5983,142.4,142.36,5.198]
[1718397794094,8.29,142.39,142.37,23.3894]
[1718397794312,8.29,142.39,142.38,2.5986]
[1718397795299,8.29,142.4,142.38,2.5986]
[1718397795624,8.29,142.39,142.37,25.9881]
[1718397795806,8.29,142.39,142.37,7.7962]
[1718397796594,8.29,142.39,142.37,15.5926]
[1718397797809,8.29,142.39,142.37,7.7962]
[1718397802220,8.29,142.39,142.37,15.5927]
[1718397802618,8.29,142.39,142.37,7.7962]
[1718397808651,8.29,142.39,142.37,2.5987]
[1718397809455,8.29,142.39,142.37,7.7964]
[1718397809656,8.29,142.39,142.37,2.5987]
[1718397810154,8.29,142.39,142.37,7.7963]
[1718397810764,8.29,142.39,142.37,15.5928]
[1718397810930,8.29,142.39,142.37,2.5987]
[1718397811124,8.29,142.39,142.36,18.1923]
[1718397811353,8.29,142.38,142.37,2.5988]
[1718397811854,8.29,142.38,142.36,23.39]
[1718397812044,8.29,142.38,142.37,2.5988]
[1718397812347,8.29,142.39,142.37,15.593]
[1718397812520,2.5982,142.41,142.37,23.3896]
[1718397812826,2.5982,142.41,142.37,25.9883]
[1718397813028,8.29,142.39,142.37,25.9883]
[1718397813529,8.29,142.39,142.38,2.5986]
[1718397813728,8.29,142.39,142.37,25.9883]
[1718397814348,8.29,142.39,142.37,23.3896]
[1718397814738,8.29,142.39,142.37,25.9883]
[1718397814934,8.29,142.39,142.38,2.5986]
[1718397815146,7.32384116,142.42,142.38,7.7956]
[1718397815327,7.32384116,142.42,142.39,15.5906]
[1718397815328,8.29,142.4,142.39,15.5906]
[1718397815524,8.29,142.4,142.39,2.5983]
[1718397815825,8.29,142.4,142.38,7.7956]
[1718397816036,8.29,142.4,142.38,2.5985]
[1718397816253,8.29,142.39,142.37,23.3888]
[1718397816443,8.29,142.39,142.38,2.5986]
[1718397816822,8.29,142.39,142.37,7.7962]
[1718397817257,8.29,142.39,142.37,2.5987]
[1718397817556,8.29,142.38,142.37,7.7964]
[1718397818952,8.29,142.38,142.37,15.5929]
[1718397819460,8.29,142.38,142.37,25.9883]
[1718397820356,8.29,142.39,142.38,2.5986]
[1718397821056,8.29,142.39,142.38,7.7959]
[1718397821250,8.29,142.39,142.38,2.5986]
[1718397822057,8.29,142.39,142.37,23.3893]
[1718397822356,8.29,142.39,142.37,25.988]
[1718397822750,8.29,142.39,142.38,2.5986]
[1718397823660,8.29,142.39,142.37,25.9879]
[1718397824155,8.29,142.39,142.38,2.5986]
[1718397824354,8.29,142.39,142.37,23.3893]
[1718397824535,7.32384116,142.42,142.41,2.5981]
[1718397824743,7.32384116,142.42,142.4,7.7946]
[1718397824744,8.29,142.42,142.4,7.7946]
[1718397825045,8.29,142.41,142.4,2.5982]
[1718397825532,8.29,142.41,142.39,25.9835]
[1718397825835,8.29,142.41,142.4,2.5983]
[1718397826461,8.29,142.41,142.39,7.795]
[1718397826657,15.3511,142.43,142.4,7.7949]
[1718397826842,8.29,142.41,142.4,25.983]
[1718397827363,8.29,142.41,142.4,7.7947]
[1718397827732,8.29,142.41,142.4,15.5896]
[1718397829061,15.3511,142.43,142.41,2.5981]
[1718397829242,21.96269224,142.45,142.41,25.9809]
[1718397829441,21.96269224,142.45,142.41,15.5885]
[1718397829442,27.15749224,142.45,142.41,15.5885]
[1718397829634,7.32819272,142.45,142.42,7.7934]
[1718397829836,8.29,142.44,142.42,25.9788]
[1718397830066,8.29,142.44,142.42,15.5873]
[1718397830366,8.29,142.44,142.42,7.7935]
[1718397830537,8.29,142.44,142.42,2.5978]
[1718397830742,7.7917,142.46,142.42,15.5874]
[1718397831143,8.29,142.44,142.42,7.7936]
[1718397831365,12.9872,142.45,142.4,18.1877]
[1718397831544,12.9872,142.45,142.41,2.598]
[1718397831545,8.29,142.42,142.41,2.598]
[1718397831745,8.29,142.42,142.41,2.5981]
[1718397832047,8.29,142.42,142.4,25.9823]
[1718397832253,8.29,142.42,142.41,2.5981]
[1718397833462,8.29,142.42,142.41,7.7943]
[1718397833840,8.29,142.42,142.41,2.5981]
[1718397834063,8.29,142.42,142.4,2.5982]
[1718397834243,8.29,142.41,142.4,7.7948]
[1718397834747,16.0825,142.45,142.41,7.7942]
[1718397834946,8.29,142.42,142.41,25.981]
[1718397835156,8.29,142.42,142.41,2.598]
[1718397835358,8.29,142.42,142.41,7.7942]
[1718397836476,8.29,142.42,142.41,2.598]
[1718397838878,8.29,142.42,142.41,7.7942]
[1718397840071,15.5845,142.45,142.41,7.7942]
[1718397840294,8.29,142.42,142.41,7.7942]
[1718397840941,7.33296214,142.45,142.42,2.5979]
[1718397841251,15.62296214,142.45,142.42,2.5979]
[1718397841441,8.29,142.43,142.42,2.5979]
[1718397841869,8.29,142.43,142.42,15.5875]
[1718397842079,8.29,142.43,142.42,2.5979]
[1718397843077,8.29,142.43,142.41,25.9801]
[1718397843462,8.29,142.43,142.42,2.5979]
[1718397844171,8.29,142.43,142.41,25.9801]
[1718397845478,8.29,142.42,142.41,2.5979]
[1718397845647,41.59696214,142.45,142.41,2.5981]
[1718397845648,2.5975,142.44,142.41,2.5981]
[1718397845847,2.5975,142.44,142.4,23.3836]
[1718397845848,2.5975,142.44,142.4,25.9817]
[1718397846452,7.7926,142.44,142.4,25.9817]
[1718397846776,23.3786,142.44,142.4,2.5982]
[1718397847262,25.9763,142.44,142.4,2.5982]
[1718397847457,15.7566,142.43,142.39,7.795]
[1718397847669,8.29,142.4,142.39,7.795]
[1718397848047,8.29,142.4,142.39,2.5984]
[1718397848251,8.29,142.4,142.37,23.389]
[1718397848471,8.29,142.39,142.38,2.5986]
[1718397848664,8.29,142.39,142.38,7.7959]
[1718397850467,8.29,142.39,142.38,2.5986]
[1718397852184,8.29,142.39,142.37,25.9877]
[1718397852363,8.29,142.38,142.36,25.9894]
[1718397852565,8.29,142.37,142.36,25.9895]
[1718397853250,8.29,142.38,142.37,7.7965]
[1718397854087,8.29,142.38,142.34,2.5993]
[1718397854088,2.5988,142.37,142.34,2.5993]
[1718397854387,2.5988,142.37,142.3,15.6221]
[1718397854388,8.29,142.35,142.3,15.6221]
[1718397854554,2.599,142.36,142.33,2.5995]
[1718397854756,8.29,142.34,142.33,2.5995]
[1718397855304,8.29,142.34,142.33,25.9956]
[1718397859964,6.4994,142.39,142.36,2.5989]
[1718397860173,6.4994,142.39,142.36,25.9898]
[1718397860376,8.29,142.37,142.36,7.7969]
[1718397860587,8.29,142.37,142.36,2.5989]
[1718397861080,9.93299444,142.41,142.38,2.5986]
[1718397861257,8.29,142.39,142.38,2.5986]
[1718397861458,8.29,142.39,142.38,15.5919]
[1718397861762,8.29,142.39,142.38,25.9866]
[1718397862277,8.29,142.39,142.38,2.5986]
[1718397862660,8.29,142.39,142.37,23.3886]
[1718397862981,9.93299444,142.41,142.38,2.5986]
[1718397863183,9.93299444,142.41,142.37,25.9873]
[1718397863381,8.29,142.38,142.37,25.9873]
[1718397864064,7.7943,142.41,142.37,25.9873]
[1718397864065,2.5981,142.41,142.38,2.5986]
[1718397864381,25.67541483,142.42,142.38,25.9866]
[1718397864567,38.66521483,142.42,142.37,2.5987]
[1718397864765,8.29,142.39,142.37,7.7963]
[1718397865386,25.67541483,142.42,142.38,2.5986]
[1718397865581,8.29,142.39,142.37,25.988]
[1718397866094,8.29,142.39,142.37,7.7963]
[1718397867166,8.29,142.39,142.37,2.5987]
[1718397867362,8.29,142.39,142.36,7.7966]
[1718397867592,8.29,142.39,142.35,25.9909]
[1718397868377,8.29,142.38,142.36,2.599]
[1718397868600,8.29,142.38,142.36,7.797]
[1718397870180,8.29,142.38,142.37,2.5988]
[1718397870383,7.7946,142.41,142.37,2.5988]
[1718397870584,2.5982,142.41,142.37,2.5988]
[1718397870799,8.29,142.39,142.37,2.5988]
[1718397872994,30.87161483,142.42,142.38,2.5986]
[1718397873175,8.29,142.39,142.38,2.5986]
[1718397873373,8.29,142.39,142.37,25.9882]
[1718397873689,8.29,142.39,142.37,7.7963]
[1718397873888,8.29,142.39,142.37,15.5928]
[1718397874102,8.29,142.39,142.37,7.7963]
[1718397874780,8.29,142.39,142.37,2.5987]
[1718397875677,8.29,142.39,142.37,2.5988]
[1718397876073,8.29,142.39,142.37,7.7964]
[1718397876311,8.29,142.39,142.37,15.5929]
[1718397877408,8.29,142.39,142.37,7.7964]
[1718397878079,8.29,142.39,142.37,2.5988]
[1718397878880,8.29,142.39,142.37,7.7965]
[1718397880374,8.29,142.38,142.3,15.6221]
[1718397880687,8.29,142.36,142.34,7.7979]
[1718397880888,8.29,142.36,142.34,2.5993]
[1718397881499,8.29,142.36,142.33,23.3951]
[1718397881679,8.29,142.35,142.33,25.9946]
[1718397881874,8.29,142.35,142.33,7.7984]
[1718397882493,8.29,142.35,142.33,15.5971]
[1718397882808,8.29,142.35,142.33,25.9954]
[1718397883498,8.29,142.35,142.34,2.5994]
[1718397883713,8.29,142.35,142.33,23.396]
[1718397883886,8.29,142.35,142.34,2.5994]
[1718397884478,8.29,142.35,142.33,23.396]
[1718397884893,8.29,142.35,142.33,25.9954]
[1718397885586,8.29,142.35,142.33,7.7984]
[1718397885786,8.29,142.35,142.33,25.9951]
[1718397886097,8.29,142.35,142.34,2.5994]
[1718397886911,8.29,142.35,142.33,23.3957]
[1718397887099,8.29,142.35,142.33,7.7984]
[1718397887405,8.29,142.34,142.33,7.7984]
[1718397888010,8.29,142.34,142.33,25.9954]
[1718397894113,8.29,142.34,142.33,2.5994]
[1718397894916,8.29,142.34,142.33,7.7985]
[1718397895422,8.29,142.34,142.32,25.9967]
[1718397895616,8.29,142.33,142.32,25.9967]
[1718397897398,29.17907518,142.38,142.31,7.7994]
[1718397897705,21.8419,142.38,142.36,7.7969]
[1718397897907,21.8419,142.38,142.36,15.5939]
[1718397898120,8.29,142.37,142.36,7.7969]
[1718397898422,8.29,142.37,142.36,2.5989]
[1718397898625,8.29,142.37,142.35,25.9907]
[1718397899020,8.29,142.37,142.35,7.7972]
[1718397899312,8.29,142.36,142.35,15.5948]
[1718397899620,8.29,142.36,142.33,2.5995]
[1718397899798,8.29,142.36,142.27,15.4855]
[1718397899799,0.17,142.36,142.32,15.5981]
[1718397899995,8.29,142.34,142.33,2.5995]
[1718397900193,8.29,142.34,142.32,25.9971]
[1718397900416,8.29,142.33,142.32,25.9971]
[1718397900603,0.17,142.36,142.32,25.9971]
[1718397900818,0.17,142.36,142.33,2.5995]
[1718397901018,8.29,142.34,142.31,23.3987]
[1718397901326,8.29,142.32,142.3,2.6001]
[1718397901514,8.29,142.31,142.3,7.8003]
[1718397901825,8.29,142.31,142.3,2.6001]
[1718397902221,8.29,142.31,142.3,7.8003]
[1718397902439,8.29,142.31,142.3,26.0012]
[1718397903505,8.29,142.31,142.26,10.4027]
[1718397903707,8.29,142.28,142.27,7.8019]
[1718397903906,8.29,142.28,142.27,7.802]
[1718397904104,8.29,142.28,142.27,7.8019]
[1718397904307,0.17,142.31,142.28,2.6005]
[1718397904509,0.17,142.31,142.27,26.0064]
[1718397904510,8.29,142.29,142.27,26.0064]
[1718397904716,8.29,142.28,142.26,23.4068]
[1718397904918,8.29,142.28,142.26,26.0075]
[1718397905323,34.4597,142.31,142.26,15.6046]
[1718397905631,8.29,142.27,142.26,2.6007]
[1718397905833,8.29,142.27,142.26,7.8024]
[1718397906000,8.29,142.27,142.26,2.6007]
[1718397906201,8.29,142.27,142.24,15.6069]
[1718397906404,8.29,142.26,142.25,2.6009]
[1718397906618,7.801,142.29,142.24,23.4104]
[1718397906820,0.17,142.29,142.26,2.6008]
[1718397907021,8.29,142.27,142.26,2.6008]
[1718397907426,100.17,142.32,142.21,8.29]
[1718397907427,2.5994,142.34,142.3,2.6]
[1718397907626,2.5994,142.34,142.24,8.29]
[1718397907627,8.29,142.31,142.27,15.6038]
[1718397907930,8.29,142.31,142.26,23.4066]
[1718397907931,8.29,142.28,142.26,23.4066]
[1718397908119,8.29,142.28,142.2,15.3397]
[1718397908318,8.29,142.27,142.26,26.0082]
[1718397908630,8.29,142.27,142.25,26.0099]
[1718397908842,8.29,142.27,142.25,15.6058]
[1718397909341,8.29,142.27,142.25,26.0096]
[1718397909710,8.29,142.27,142.26,2.6008]
[1718397909918,8.29,142.27,142.25,15.6058]
[1718397910119,8.29,142.27,142.25,7.8029]
[1718397910434,8.29,142.26,142.25,7.8029]
[1718397910602,8.29,142.26,142.24,26.0113]
[1718397910807,2.6005,142.28,142.24,7.8034]
[1718397911036,8.29,142.25,142.24,7.8034]
[1718397911234,8.29,142.25,142.23,23.4115]
[1718397911541,8.29,142.25,142.24,2.6012]
[1718397911735,8.29,142.25,142.23,7.8038]
[1718397911908,8.29,142.25,142.23,26.0135]
[1718397912334,8.29,142.24,142.22,20.8121]
[1718397912511,8.29,142.23,142.22,2.6015]
[1718397912710,8.29,142.23,142.22,7.8047]
[1718397913414,8.29,142.23,142.21,26.0167]
[1718397913636,8.29,142.22,142.21,26.0168]
[1718397913929,8.29,142.22,142.21,7.805]
[1718397914158,8.29,142.22,142.21,26.0174]
[1718397914645,0.17,142.27,142.17,23.4964]
[1718397914936,25.1874,142.28,142.24,2.6012]
[1718397915230,8.29,142.25,142.23,2.6012]
[1718397915417,8.29,142.24,142.23,2.6012]
[1718397915620,8.29,142.24,142.22,7.8046]
[1718397915824,8.29,142.24,142.21,26.0172]
[1718397916028,8.29,142.22,142.21,23.4156]
[1718397916205,8.29,142.22,142.21,26.0172]
[1718397916409,8.29,142.23,142.22,15.6091]
[1718397916730,8.46,142.23,142.2,2.6018]
[1718397916933,8.29,142.21,142.2,2.6018]
[1718397917238,0.17,142.25,142.21,23.4153]
[1718397917410,0.34,142.25,142.21,26.0169]
[1718397917614,8.29,142.22,142.2,15.6112]
[1718397917926,8.29,142.21,142.2,15.6112]
[1718397918132,8.29,142.21,142.2,26.019]
[1718397918936,0.17,142.25,142.22,26.0156]
[1718397919134,0.17,142.25,142.23,2.6014]
[1718397919429,8.29,142.24,142.22,2.6014]
[1718397919734,8.29,142.23,142.22,2.6014]
[1718397919934,8.29,142.23,142.22,2.6016]
[1718397920134,8.29,142.23,142.21,23.415]
[1718397920444,8.29,142.22,142.2,2.6018]
[1718397921121,8.29,142.22,142.19,26.0202]
[1718397921327,8.29,142.21,142.2,7.8058]
[1718397921519,8.29,142.21,142.2,2.6019]
[1718397921715,8.29,142.21,142.2,7.8058]
[1718397921920,8.29,142.21,142.2,26.0195]
[1718397922621,8.29,142.21,142.17,1.24350624]
[1718397922622,10.8918,142.21,142.17,15.6147]
[1718397922818,8.29,142.18,142.17,7.8075]
[1718397923346,8.29,142.18,142.17,26.025]
[1718397923931,8.29,142.19,142.18,26.0225]
[1718397924135,8.29,142.2,142.19,7.8062]
[1718397924835,8.29,142.2,142.19,2.602]
[1718397925420,8.29,142.2,142.18,26.0224]
[1718397925639,8.29,142.2,142.18,7.8064]
[1718397926017,8.29,142.2,142.18,15.6133]
[1718397926550,8.29,142.2,142.17,26.0237]
[1718397926717,8.29,142.19,142.17,26.0237]
[1718397927722,16.5267,142.22,142.16,26.0261]
[1718397927922,40.9639,142.24,142.2,2.6018]
[1718397928229,8.29,142.21,142.2,2.6018]
[1718397928953,2.6014,142.23,142.19,26.0203]
[1718397929119,8.29,142.21,142.19,26.0203]
[1718397929322,8.29,142.21,142.19,7.806]
[1718397929639,8.29,142.21,142.19,15.6124]
[1718397929829,10.8919,142.2,142.16,26.0254]
[1718397930022,8.29,142.19,142.16,2.6025]
[1718397930520,8.29,142.19,142.16,7.8078]
[1718397930727,8.29,142.19,142.16,15.6158]
[1718397931223,8.29,142.18,142.16,15.6158]
[1718397931630,8.29,142.18,142.17,7.8075]
[1718397932146,8.29,142.19,142.17,15.615]
[1718397932628,8.29,142.19,142.17,26.0248]
[1718397934654,29.44676466,142.26,142.2,18.2126]
[1718397934833,8.29,142.22,142.21,2.6016]
[1718397935150,8.29,142.22,142.21,7.8051]
[1718397935352,8.29,142.22,142.21,2.6016]
[1718397935550,8.29,142.22,142.21,7.8051]
[1718397935739,8.29,142.22,142.21,2.6016]
[1718397935941,47.65326466,142.26,142.21,5.2035]
[1718397936130,8.29,142.23,142.21,7.8051]
[1718397936930,8.29,142.23,142.2,26.0181]
[1718397937154,8.29,142.22,142.19,26.0201]
[1718397937455,26.0125,142.24,142.2,7.8058]
[1718397937641,8.29,142.22,142.2,7.8058]
[1718397937838,8.29,142.22,142.2,2.6019]
[1718397938248,8.29,142.22,142.2,7.8057]
[1718397938628,8.29,142.22,142.19,26.0201]
[1718397938831,8.29,142.21,142.19,26.0201]
[1718397939150,8.29,142.21,142.19,23.4182]
[1718397939534,8.29,142.21,142.2,2.6019]
[1718397940472,8.29,142.21,142.19,7.8061]
[1718397940641,2.6016,142.22,142.18,7.8066]
[1718397940964,8.29,142.19,142.18,26.0228]
[1718397941167,8.29,142.2,142.18,26.0228]
[1718397941456,8.29,142.2,142.19,2.6021]
[1718397942844,7.8045,142.23,142.19,15.6127]
[1718397944363,2.6015,142.23,142.2,2.6019]
[1718397945061,0.17,142.23,142.2,2.6019]
[1718397945234,2.7714,142.23,142.2,2.6019]
[1718397945438,2.7714,142.23,142.19,26.0208]
[1718397946037,2.7714,142.23,142.17,5.2049]
[1718397946038,8.29,142.2,142.17,5.2049]
[1718397946341,2.6018,142.21,142.17,26.0244]
[1718397946342,8.29,142.18,142.17,26.0244]
[1718397947439,8.29,142.18,142.17,2.6023]
[1718397947762,8.29,142.18,142.17,26.0248]
[1718397948342,8.29,142.18,142.17,2.6023]
[1718397948566,8.29,142.18,142.17,15.6148]
[1718397948944,8.29,142.18,142.17,7.8073]
[1718397949267,8.29,142.18,142.17,26.0248]
[1718397949650,15.1714,142.21,142.18,7.8069]
[1718397949959,8.29,142.19,142.18,7.8069]
[1718397950261,8.29,142.19,142.17,26.0245]
[1718397950445,8.29,142.18,142.17,26.0245]
[1718397952550,17.7732,142.21,142.17,26.0245]
[1718397952551,15.1714,142.21,142.18,2.6022]
[1718397952755,8.29,142.19,142.18,7.8068]
[1718397953065,8.29,142.19,142.18,26.0231]
[1718397954458,8.29,142.19,142.18,7.8068]
[1718397955160,8.29,142.19,142.18,15.6138]
[1718397955572,8.29,142.19,142.18,26.0231]
[1718397956267,8.29,142.19,142.18,7.8068]
[1718397956582,8.29,142.19,142.18,2.6022]
[1718397957063,8.29,142.19,142.18,7.8068]
[1718397957576,8.29,142.19,142.18,26.0231]
[1718397957747,8.29,142.19,142.18,7.8068]
[1718397957944,8.29,142.19,142.18,15.6138]
[1718397958145,8.29,142.22,142.2,7.8056]
[1718397958647,8.29,142.22,142.2,2.6018]
[1718397959259,8.29,142.21,142.19,26.0205]
[1718397959577,8.29,142.21,142.19,7.806]
[1718397960264,8.29,142.21,142.19,15.6124]
[1718397960797,8.29,142.21,142.16,8.29]